[Event "Early-Titled-Tuesday-Blitz-March-26-2024"]
[Site "Chess.com"]
[Date "2024.03.26"]
[Round "7"]
[White "hakanazeri2"]
[Black "Kirill_Klukin"]
[Result "0-1"]
[WhiteElo "2579"]
[BlackElo "2836"]
[TimeControl "180+1"]
[EndTime "9:15:36 PDT"]
[Termination "Kirill_Klukin won on time"]

1. Nf3 {[%clk 0:03:00.9]} 1... d5 {[%clk 0:02:59.1]} 2. d4 {[%clk 0:03:01.2]}
2... e6 {[%clk 0:02:55.6]} 3. c4 {[%clk 0:03:01.5]} 3... c6 {[%clk 0:02:54.1]}
4. g3 {[%clk 0:03:00.7]} 4... f5 {[%clk 0:02:51.4]} 5. Bg2 {[%clk 0:03:00.2]}
5... Nf6 {[%clk 0:02:52.1]} 6. O-O {[%clk 0:03:00.4]} 6... Bd6 {[%clk
0:02:52.8]} 7. b3 {[%clk 0:02:56.6]} 7... Qe7 {[%clk 0:02:52.1]} 8. a4 {[%clk
0:02:54]} 8... O-O {[%clk 0:02:50.9]} 9. Ba3 {[%clk 0:02:54.5]} 9... Bxa3 {[%clk
0:02:50.4]} 10. Nxa3 {[%clk 0:02:55.3]} 10... a5 {[%clk 0:02:49.3]} 11. Nb1
{[%clk 0:02:39.5]} 11... Na6 {[%clk 0:02:49.5]} 12. Nbd2 {[%clk 0:02:36.4]}
12... b6 {[%clk 0:02:48.5]} 13. Ne5 {[%clk 0:02:36]} 13... Bb7 {[%clk
0:02:48.8]} 14. e3 {[%clk 0:02:33.9]} 14... Nb4 {[%clk 0:02:48.6]} 15. Rc1
{[%clk 0:02:31.2]} 15... Rac8 {[%clk 0:02:48.8]} 16. c5 {[%clk 0:02:20.4]} 16...
bxc5 {[%clk 0:02:30.5]} 17. Rxc5 {[%clk 0:02:19.7]} 17... Na6 {[%clk 0:02:29.9]}
18. Rc3 {[%clk 0:01:49.9]} 18... c5 {[%clk 0:02:28.9]} 19. Qc1 {[%clk
0:01:47.2]} 19... cxd4 {[%clk 0:02:21.6]} 20. exd4 {[%clk 0:01:48.1]} 20... Qb4
{[%clk 0:02:21.9]} 21. Rxc8 {[%clk 0:01:47.3]} 21... Rxc8 {[%clk 0:02:22.8]} 22.
Qb2 {[%clk 0:01:47.5]} 22... Ne4 {[%clk 0:02:15.8]} 23. Nxe4 {[%clk 0:01:46.4]}
23... dxe4 {[%clk 0:02:15.5]} 24. Rc1 {[%clk 0:01:38.3]} 24... Rxc1+ {[%clk
0:01:55.5]} 25. Qxc1 {[%clk 0:01:37.1]} 25... Qxb3 {[%clk 0:01:55.8]} 26. Bf1
{[%clk 0:01:32.8]} 26... h6 {[%clk 0:01:51.1]} 27. Bc4 {[%clk 0:01:25.1]} 27...
Qb6 {[%clk 0:01:50]} 28. Nd7 {[%clk 0:01:13.9]} 28... Qd6 {[%clk 0:01:41]} 29.
Nc5 {[%clk 0:01:14.1]} 29... Bc8 {[%clk 0:01:19.2]} 30. Bxa6 {[%clk 0:00:24.5]}
30... Bxa6 {[%clk 0:01:19.2]} 31. Nxa6 {[%clk 0:00:25.4]} 31... Qxa6 {[%clk
0:01:19.4]} 32. Qc3 {[%clk 0:00:24.9]} 32... Kh7 {[%clk 0:01:13.7]} 33. Qb3
{[%clk 0:00:17.5]} 33... Qd6 {[%clk 0:01:12.2]} 34. Qc3 {[%clk 0:00:17.4]} 34...
Qb4 {[%clk 0:01:09.7]} 35. Qc6 {[%clk 0:00:17.6]} 35... Qb3 {[%clk 0:00:57.4]}
36. Qb5 {[%clk 0:00:02.9]} 36... Qxb5 {[%clk 0:00:50.8]} 37. axb5 {[%clk
0:00:03.8]} 37... a4 {[%clk 0:00:51.7]} 38. b6 {[%clk 0:00:04.4]} 38... a3
{[%clk 0:00:52.3]} 39. b7 {[%clk 0:00:05.3]} 39... a2 {[%clk 0:00:53.2]} 40.
b8=Q {[%clk 0:00:05.9]} 40... a1=Q+ {[%clk 0:00:54.1]} 41. Kg2 {[%clk
0:00:06.7]} 41... Qxd4 {[%clk 0:00:54.5]} 42. Qe8 {[%clk 0:00:04.2]} 42... Qd5
{[%clk 0:00:49.8]} 43. Kg1 {[%clk 0:00:04.3]} 43... Qe5 {[%clk 0:00:50.2]} 44.
Kg2 {[%clk 0:00:01.4]} 44... e3 {[%clk 0:00:49.1]} 45. fxe3 {[%clk 0:00:02.1]}
45... Qxe3 {[%clk 0:00:49.8]} 46. h4 {[%clk 0:00:02.8]} 46... Qe2+ {[%clk
0:00:49.7]} 47. Kh3 {[%clk 0:00:02.8]} 47... Qg4+ {[%clk 0:00:50.4]} 48. Kh2
{[%clk 0:00:02.1]} 48... f4 {[%clk 0:00:50.4]} 49. gxf4 {[%clk 0:00:02.2]} 49...
Qxh4+ {[%clk 0:00:50.7]} 50. Kg2 {[%clk 0:00:02.9]} 50... Qg4+ {[%clk
0:00:51.1]} 51. Kh1 {[%clk 0:00:02.6]} 51... Qf3+ {[%clk 0:00:50.8]} 52. Kg1
{[%clk 0:00:02.4]} 52... Qg3+ {[%clk 0:00:51.3]} 53. Kh1 {[%clk 0:00:02.4]}
53... Qxf4 {[%clk 0:00:39.3]} 54. Qxe6 {[%clk 0:00:02.2]} 54... Qh4+ {[%clk
0:00:40]} 55. Kg2 {[%clk 0:00:02.8]} 55... Qg5+ {[%clk 0:00:40.5]} 56. Kh1
{[%clk 0:00:02.6]} 56... Qh5+ {[%clk 0:00:40.9]} 0-1

[Event "Early-Titled-Tuesday-Blitz-March-26-2024"]
[Site "Chess.com"]
[Date "2024.03.26"]
[Round "7"]
[White "jaskol95"]
[Black "MikeSailer"]
[Result "1-0"]
[WhiteElo "2473"]
[BlackElo "2095"]
[TimeControl "180+1"]
[EndTime "9:15:37 PDT"]
[Termination "jaskol95 won on time"]

1. e4 {[%clk 0:03:00.9]} 1... d5 {[%clk 0:02:58.9]} 2. exd5 {[%clk 0:02:59.2]}
2... Qxd5 {[%clk 0:02:54.8]} 3. h3 {[%clk 0:02:56.9]} 3... Nf6 {[%clk
0:02:51.8]} 4. Nc3 {[%clk 0:02:51.2]} 4... Qd6 {[%clk 0:02:47.4]} 5. Nf3 {[%clk
0:02:45.7]} 5... c6 {[%clk 0:02:45.5]} 6. d4 {[%clk 0:02:41.6]} 6... Bf5 {[%clk
0:02:44.1]} 7. Bc4 {[%clk 0:02:30.6]} 7... e6 {[%clk 0:02:42.9]} 8. Ne5 {[%clk
0:02:21.2]} 8... Nbd7 {[%clk 0:02:36.1]} 9. Bf4 {[%clk 0:02:20.2]} 9... Nxe5
{[%clk 0:02:33.5]} 10. Bxe5 {[%clk 0:02:18.7]} 10... Qb4 {[%clk 0:02:32.6]} 11.
Bb3 {[%clk 0:02:11.5]} 11... Be7 {[%clk 0:02:20.7]} 12. O-O {[%clk 0:02:10.7]}
12... O-O {[%clk 0:02:20.2]} 13. Re1 {[%clk 0:02:09]} 13... a5 {[%clk
0:02:12.2]} 14. a3 {[%clk 0:02:04.5]} 14... Qb6 {[%clk 0:02:11.3]} 15. Qf3
{[%clk 0:02:03.4]} 15... h6 {[%clk 0:02:03.3]} 16. g4 {[%clk 0:01:51.5]} 16...
Bh7 {[%clk 0:02:02.6]} 17. Kh2 {[%clk 0:01:51.3]} 17... Qd8 {[%clk 0:02:01.6]}
18. Rg1 {[%clk 0:01:50.1]} 18... a4 {[%clk 0:01:17.5]} 19. Ba2 {[%clk
0:01:39.1]} 19... Bd6 {[%clk 0:00:57.9]} 20. g5 {[%clk 0:01:38.9]} 20... Bxe5+
{[%clk 0:00:57.6]} 21. dxe5 {[%clk 0:01:37.1]} 21... hxg5 {[%clk 0:00:58]} 22.
exf6 {[%clk 0:01:34.6]} 22... Qxf6 {[%clk 0:00:53.7]} 23. Qxf6 {[%clk
0:01:29.9]} 23... gxf6 {[%clk 0:00:54.2]} 24. h4 {[%clk 0:01:25.1]} 24... Bxc2
{[%clk 0:00:51.2]} 25. hxg5 {[%clk 0:01:24.4]} 25... fxg5 {[%clk 0:00:51.8]} 26.
Rxg5+ {[%clk 0:01:24.6]} 26... Kh7 {[%clk 0:00:52.2]} 27. Kg3 {[%clk 0:01:23.8]}
27... Bg6 {[%clk 0:00:49.5]} 28. Rh1+ {[%clk 0:01:02.5]} 28... Kg7 {[%clk
0:00:49.6]} 29. Bb1 {[%clk 0:01:03.2]} 29... b5 {[%clk 0:00:43.2]} 30. Ne2
{[%clk 0:00:52.2]} 30... Kf6 {[%clk 0:00:41.9]} 31. Rc5 {[%clk 0:00:41.2]} 31...
Bxb1 {[%clk 0:00:33.5]} 32. Rxb1 {[%clk 0:00:42.1]} 32... Rac8 {[%clk
0:00:17.7]} 33. Rbc1 {[%clk 0:00:42.1]} 33... Rfd8 {[%clk 0:00:18.1]} 34. Nc3
{[%clk 0:00:40.2]} 34... Rd3+ {[%clk 0:00:11.4]} 35. Kf4 {[%clk 0:00:37.5]}
35... Rh8 {[%clk 0:00:08.7]} 36. Ne4+ {[%clk 0:00:36.8]} 36... Ke7 {[%clk
0:00:08.1]} 37. f3 {[%clk 0:00:27.3]} 37... Rh3 {[%clk 0:00:08.2]} 38. Rf1
{[%clk 0:00:19.8]} 38... Rh2 {[%clk 0:00:04.1]} 39. Rxc6 {[%clk 0:00:16.1]}
39... Rxb2 {[%clk 0:00:04.2]} 40. Rc7+ {[%clk 0:00:16.6]} 40... Kf8 {[%clk
0:00:03.3]} 41. Rh1 {[%clk 0:00:15.6]} 41... Rxa3 {[%clk 0:00:02.2]} 42. Rh7
{[%clk 0:00:11.8]} 42... f5 {[%clk 0:00:01.3]} 43. Rhf7+ {[%clk 0:00:11]} 1-0

[Event "Early-Titled-Tuesday-Blitz-March-26-2024"]
[Site "Chess.com"]
[Date "2024.03.26"]
[Round "7"]
[White "frequentblunders"]
[Black "Charodej1"]
[Result "0-1"]
[WhiteElo "2191"]
[BlackElo "2431"]
[TimeControl "180+1"]
[EndTime "9:15:37 PDT"]
[Termination "Charodej1 won on time"]

1. e4 {[%clk 0:03:00.3]} 1... g6 {[%clk 0:02:57]} 2. Nc3 {[%clk 0:03:01.2]} 2...
Bg7 {[%clk 0:02:56.9]} 3. d4 {[%clk 0:03:01.4]} 3... d6 {[%clk 0:02:56.3]} 4. f4
{[%clk 0:03:02]} 4... Nf6 {[%clk 0:02:49.2]} 5. Nf3 {[%clk 0:03:00.8]} 5... O-O
{[%clk 0:02:47.7]} 6. e5 {[%clk 0:02:59.3]} 6... Nfd7 {[%clk 0:02:46.4]} 7. Bd3
{[%clk 0:02:57.5]} 7... c5 {[%clk 0:02:44.6]} 8. exd6 {[%clk 0:02:54.1]} 8...
exd6 {[%clk 0:02:44.1]} 9. d5 {[%clk 0:02:46.2]} 9... a6 {[%clk 0:02:41.9]} 10.
O-O {[%clk 0:02:46.3]} 10... b5 {[%clk 0:02:41.2]} 11. b3 {[%clk 0:02:39.7]}
11... Bb7 {[%clk 0:02:40.8]} 12. Bb2 {[%clk 0:02:39.4]} 12... Nf6 {[%clk
0:02:36.8]} 13. Be2 {[%clk 0:02:35.7]} 13... Nbd7 {[%clk 0:02:34.6]} 14. h3
{[%clk 0:02:28.6]} 14... Nb6 {[%clk 0:02:34.2]} 15. Qd2 {[%clk 0:02:14.7]} 15...
Nfxd5 {[%clk 0:02:30.6]} 16. Nxd5 {[%clk 0:02:15.6]} 16... Bxb2 {[%clk
0:02:30.1]} 17. Nxb6 {[%clk 0:02:15.4]} 17... Qxb6 {[%clk 0:02:29.8]} 18. Rad1
{[%clk 0:02:09.1]} 18... Bg7 {[%clk 0:01:46.5]} 19. Qxd6 {[%clk 0:02:03.8]}
19... Qxd6 {[%clk 0:01:38.6]} 20. Rxd6 {[%clk 0:02:04.2]} 20... Rfe8 {[%clk
0:01:39.4]} 21. Kf2 {[%clk 0:01:47.4]} 21... Re4 {[%clk 0:01:37.6]} 22. g3
{[%clk 0:01:31.5]} 22... Rae8 {[%clk 0:01:30.7]} 23. Bd1 {[%clk 0:01:04.9]}
23... h6 {[%clk 0:01:22.3]} 24. Re1 {[%clk 0:00:36.2]} 24... Rxe1 {[%clk
0:01:19.2]} 25. Nxe1 {[%clk 0:00:34.7]} 25... Bd4+ {[%clk 0:01:18.6]} 26. Kf1
{[%clk 0:00:31.4]} 26... Bc8 {[%clk 0:01:11.9]} 27. Bg4 {[%clk 0:00:20.7]} 27...
f5 {[%clk 0:00:51]} 28. Rxg6+ {[%clk 0:00:20.5]} 28... Kh7 {[%clk 0:00:50]} 29.
Bh5 {[%clk 0:00:20.1]} 29... Re3 {[%clk 0:00:35.1]} 30. Rc6 {[%clk 0:00:17]}
30... Be6 {[%clk 0:00:28.7]} 31. Rc7+ {[%clk 0:00:12]} 31... Bg7 {[%clk
0:00:28.3]} 32. Nf3 {[%clk 0:00:10.5]} 32... Kh8 {[%clk 0:00:20.3]} 33. Kf2
{[%clk 0:00:09.8]} 33... Rc3 {[%clk 0:00:18.5]} 34. Ne1 {[%clk 0:00:08.1]} 34...
c4 {[%clk 0:00:17.9]} 35. Bg6 {[%clk 0:00:06.4]} 35... Kg8 {[%clk 0:00:14.4]}
36. Re7 {[%clk 0:00:05.3]} 36... Bd5 {[%clk 0:00:14]} 37. Rd7 {[%clk 0:00:04.3]}
37... Be4 {[%clk 0:00:14.2]} 38. Rd8+ {[%clk 0:00:03.5]} 38... Bf8 {[%clk
0:00:14.1]} 39. g4 {[%clk 0:00:02.6]} 39... cxb3 {[%clk 0:00:13.4]} 40. cxb3
{[%clk 0:00:01.6]} 40... Kg7 {[%clk 0:00:11.7]} 41. gxf5 {[%clk 0:00:01.4]}
41... Bc5+ {[%clk 0:00:12.1]} 0-1

[Event "Early-Titled-Tuesday-Blitz-March-26-2024"]
[Site "Chess.com"]
[Date "2024.03.26"]
[Round "7"]
[White "Gurvich_Vitaly"]
[Black "vladislavkovalev"]
[Result "0-1"]
[WhiteElo "2720"]
[BlackElo "2873"]
[TimeControl "180+1"]
[EndTime "9:15:39 PDT"]
[Termination "vladislavkovalev won by resignation"]

1. d4 {[%clk 0:03:00.9]} 1... Nf6 {[%clk 0:03:00]} 2. Bf4 {[%clk 0:03:00]} 2...
e6 {[%clk 0:02:59.1]} 3. e3 {[%clk 0:03:00]} 3... d5 {[%clk 0:02:58.9]} 4. Nd2
{[%clk 0:02:59.4]} 4... c5 {[%clk 0:02:58.6]} 5. c3 {[%clk 0:02:59.5]} 5... Bd6
{[%clk 0:02:58.6]} 6. Bxd6 {[%clk 0:02:57.9]} 6... Qxd6 {[%clk 0:02:59.5]} 7. f4
{[%clk 0:02:58.2]} 7... cxd4 {[%clk 0:02:29]} 8. cxd4 {[%clk 0:02:57]} 8... Nc6
{[%clk 0:02:29.1]} 9. a3 {[%clk 0:02:56.7]} 9... Ne4 {[%clk 0:02:16.4]} 10. Nxe4
{[%clk 0:02:51.4]} 10... dxe4 {[%clk 0:02:17.3]} 11. Ne2 {[%clk 0:02:51.1]}
11... Ne7 {[%clk 0:02:11.2]} 12. Nc3 {[%clk 0:02:49.2]} 12... f5 {[%clk
0:02:10.8]} 13. Qd2 {[%clk 0:02:40.8]} 13... O-O {[%clk 0:02:10.3]} 14. Be2
{[%clk 0:02:36.3]} 14... Bd7 {[%clk 0:02:03.9]} 15. Rc1 {[%clk 0:02:34]} 15...
Rac8 {[%clk 0:02:03.6]} 16. Kf2 {[%clk 0:02:33.8]} 16... Rc7 {[%clk 0:02:01]}
17. Rc2 {[%clk 0:02:21]} 17... Rfc8 {[%clk 0:02:00.7]} 18. Rhc1 {[%clk
0:02:19.7]} 18... h6 {[%clk 0:01:53.4]} 19. g3 {[%clk 0:02:07]} 19... a6 {[%clk
0:01:52.9]} 20. b4 {[%clk 0:01:57]} 20... Rc6 {[%clk 0:01:41.2]} 21. Nd1 {[%clk
0:01:47.3]} 21... Nd5 {[%clk 0:01:35.7]} 22. Rc5 {[%clk 0:01:13.5]} 22... b6
{[%clk 0:01:31.2]} 23. Rxc6 {[%clk 0:00:56.1]} 23... Rxc6 {[%clk 0:01:32.1]} 24.
Nc3 {[%clk 0:00:46.9]} 24... Nc7 {[%clk 0:00:56.1]} 25. Nd1 {[%clk 0:00:32.3]}
25... Rxc1 {[%clk 0:00:38.2]} 26. Qxc1 {[%clk 0:00:33.2]} 26... Bb5 {[%clk
0:00:38.8]} 27. Nc3 {[%clk 0:00:27.2]} 27... Bxe2 {[%clk 0:00:34.7]} 28. Kxe2
{[%clk 0:00:28.1]} 28... Qc6 {[%clk 0:00:33.4]} 29. Qd2 {[%clk 0:00:22.4]} 29...
Qc4+ {[%clk 0:00:32.6]} 30. Kf2 {[%clk 0:00:22.9]} 30... Kf7 {[%clk 0:00:21.3]}
31. g4 {[%clk 0:00:20.1]} 31... g6 {[%clk 0:00:11]} 32. gxf5 {[%clk 0:00:19.7]}
32... gxf5 {[%clk 0:00:11.9]} 33. h3 {[%clk 0:00:17.3]} 33... Ke7 {[%clk
0:00:11.5]} 34. Ne2 {[%clk 0:00:12.9]} 34... Nd5 {[%clk 0:00:11.2]} 35. Qc1
{[%clk 0:00:12.7]} 35... Qd3 {[%clk 0:00:03.7]} 36. h4 {[%clk 0:00:10.8]} 36...
Kd7 {[%clk 0:00:03.9]} 37. h5 {[%clk 0:00:09]} 37... Nf6 {[%clk 0:00:04.5]} 38.
b5 {[%clk 0:00:04.5]} 38... axb5 {[%clk 0:00:04]} 39. Qb2 {[%clk 0:00:03.6]}
39... Ng4+ {[%clk 0:00:04.2]} 40. Ke1 {[%clk 0:00:04.1]} 40... Nxe3 {[%clk
0:00:04.7]} 41. Qb4 {[%clk 0:00:03]} 41... Nc2+ {[%clk 0:00:03.6]} 0-1

[Event "Early-Titled-Tuesday-Blitz-March-26-2024"]
[Site "Chess.com"]
[Date "2024.03.26"]
[Round "7"]
[White "BestestBP"]
[Black "Aural1011"]
[Result "1-0"]
[WhiteElo "2226"]
[BlackElo "1692"]
[TimeControl "180+1"]
[EndTime "9:15:43 PDT"]
[Termination "BestestBP won on time"]

1. c4 {[%clk 0:03:00.9]} 1... e6 {[%clk 0:02:59.8]} 2. g3 {[%clk 0:02:53.4]}
2... d5 {[%clk 0:03:00.2]} 3. cxd5 {[%clk 0:02:53.1]} 3... exd5 {[%clk
0:03:01.1]} 4. Bg2 {[%clk 0:02:52.9]} 4... Nf6 {[%clk 0:03:01.8]} 5. Nf3 {[%clk
0:02:51.6]} 5... c6 {[%clk 0:03:02.3]} 6. O-O {[%clk 0:02:52.1]} 6... Bd6 {[%clk
0:03:01.7]} 7. b3 {[%clk 0:02:51.9]} 7... O-O {[%clk 0:03:01.1]} 8. Bb2 {[%clk
0:02:51.7]} 8... Bf5 {[%clk 0:03:00.4]} 9. Nd4 {[%clk 0:02:46.8]} 9... Bg6
{[%clk 0:02:59.4]} 10. Nc3 {[%clk 0:02:46.2]} 10... Re8 {[%clk 0:02:57.9]} 11.
d3 {[%clk 0:02:44.4]} 11... Nbd7 {[%clk 0:02:48.6]} 12. Rc1 {[%clk 0:02:40.9]}
12... a6 {[%clk 0:02:42.7]} 13. a3 {[%clk 0:02:34.6]} 13... Qe7 {[%clk
0:02:24.2]} 14. b4 {[%clk 0:02:29.4]} 14... a5 {[%clk 0:02:24.4]} 15. b5 {[%clk
0:02:27.8]} 15... c5 {[%clk 0:01:30.5]} 16. Nc2 {[%clk 0:02:00.8]} 16... d4
{[%clk 0:01:27.3]} 17. Nd5 {[%clk 0:01:56.6]} 17... Qxe2 {[%clk 0:01:15.2]} 18.
Nxf6+ {[%clk 0:01:46.9]} 18... Nxf6 {[%clk 0:01:13.8]} 19. Bxb7 {[%clk
0:01:46.2]} 19... Rab8 {[%clk 0:00:49.2]} 20. Bc6 {[%clk 0:01:45.7]} 20... Qxd1
{[%clk 0:00:40.1]} 21. Rfxd1 {[%clk 0:01:29.5]} 21... Re7 {[%clk 0:00:34.4]} 22.
a4 {[%clk 0:01:25.7]} 22... Ng4 {[%clk 0:00:28.6]} 23. Na3 {[%clk 0:01:14]}
23... Ne5 {[%clk 0:00:27.1]} 24. Nc4 {[%clk 0:01:09.8]} 24... Nxc4 {[%clk
0:00:23.3]} 25. Rxc4 {[%clk 0:01:05.7]} 25... Re2 {[%clk 0:00:23.4]} 26. Bc1
{[%clk 0:00:59.1]} 26... f6 {[%clk 0:00:14.1]} 27. Ba3 {[%clk 0:00:41.8]} 27...
Bf7 {[%clk 0:00:13.4]} 28. Bxc5 {[%clk 0:00:20.7]} 28... Bxc4 {[%clk 0:00:10.6]}
29. Bxd6 {[%clk 0:00:20.9]} 29... Rd8 {[%clk 0:00:10.2]} 30. Bc7 {[%clk
0:00:12.2]} 30... Rc8 {[%clk 0:00:07.5]} 31. b6 {[%clk 0:00:08.1]} 31... Ba6
{[%clk 0:00:07.8]} 32. Bd5+ {[%clk 0:00:05.7]} 32... Kh8 {[%clk 0:00:06.3]} 33.
Bf4 {[%clk 0:00:04.4]} 33... Ree8 {[%clk 0:00:05]} 34. b7 {[%clk 0:00:03.8]}
34... Rb8 {[%clk 0:00:04.6]} 35. Rb1 {[%clk 0:00:03.5]} 35... h6 {[%clk
0:00:03.3]} 36. Bxb8 {[%clk 0:00:03.7]} 36... Rxb8 {[%clk 0:00:03]} 37. Rb6
{[%clk 0:00:04.4]} 37... Bxb7 {[%clk 0:00:02.5]} 38. Rxb7 {[%clk 0:00:04.5]}
38... Rc8 {[%clk 0:00:01.8]} 39. Bc4 {[%clk 0:00:04.6]} 39... Re8 {[%clk
0:00:01.7]} 40. Rb5 {[%clk 0:00:04.8]} 40... Re1+ {[%clk 0:00:01.8]} 41. Kg2
{[%clk 0:00:05]} 41... Re2 {[%clk 0:00:01.7]} 42. Rxa5 {[%clk 0:00:05.2]} 42...
Kh7 {[%clk 0:00:02]} 43. Bd5 {[%clk 0:00:05.1]} 43... Rb2 {[%clk 0:00:01.5]} 44.
Be4+ {[%clk 0:00:05.3]} 1-0

[Event "Early-Titled-Tuesday-Blitz-March-26-2024"]
[Site "Chess.com"]
[Date "2024.03.26"]
[Round "7"]
[White "Kapitan_Bayan"]
[Black "Kavyev_Ruslan"]
[Result "1-0"]
[WhiteElo "2295"]
[BlackElo "2385"]
[TimeControl "180+1"]
[EndTime "9:15:48 PDT"]
[Termination "Kapitan_Bayan won by resignation"]

1. e4 {[%clk 0:03:00.9]} 1... c5 {[%clk 0:02:59.7]} 2. Nf3 {[%clk 0:03:00.3]}
2... Nc6 {[%clk 0:03:00.1]} 3. d4 {[%clk 0:02:59.7]} 3... cxd4 {[%clk 0:03:01]}
4. Nxd4 {[%clk 0:02:59.7]} 4... Nf6 {[%clk 0:03:01.6]} 5. Nc3 {[%clk 0:02:58.7]}
5... e5 {[%clk 0:03:02]} 6. Ndb5 {[%clk 0:02:58.3]} 6... d6 {[%clk 0:03:02]} 7.
Nd5 {[%clk 0:02:58.3]} 7... Nxd5 {[%clk 0:03:00.9]} 8. exd5 {[%clk 0:02:58.9]}
8... Ne7 {[%clk 0:03:01.5]} 9. c3 {[%clk 0:02:53.7]} 9... Ng6 {[%clk 0:02:58.4]}
10. Qa4 {[%clk 0:02:29.9]} 10... Bd7 {[%clk 0:02:57]} 11. Qb4 {[%clk 0:02:29.6]}
11... Qb8 {[%clk 0:02:56.4]} 12. Qc4 {[%clk 0:02:27.3]} 12... Bxb5 {[%clk
0:02:38.6]} 13. Qxb5+ {[%clk 0:02:26.7]} 13... Kd8 {[%clk 0:02:38.7]} 14. Be3
{[%clk 0:02:18.4]} 14... Be7 {[%clk 0:02:27.5]} 15. g3 {[%clk 0:02:07.4]} 15...
Qc7 {[%clk 0:02:22.5]} 16. h4 {[%clk 0:02:04.2]} 16... h5 {[%clk 0:02:20.2]} 17.
Bh3 {[%clk 0:01:52]} 17... Nf8 {[%clk 0:02:14.4]} 18. a4 {[%clk 0:01:44.7]}
18... g6 {[%clk 0:02:10.8]} 19. a5 {[%clk 0:01:42.7]} 19... f5 {[%clk
0:02:07.1]} 20. Ra3 {[%clk 0:01:07.9]} 20... Nd7 {[%clk 0:01:15.1]} 21. Rb3
{[%clk 0:00:50.5]} 21... Kc8 {[%clk 0:01:15]} 22. Rb4 {[%clk 0:00:50.4]} 22...
Nc5 {[%clk 0:01:11.5]} 23. Rc4 {[%clk 0:00:45.4]} 23... a6 {[%clk 0:01:06]} 24.
Qb6 {[%clk 0:00:36.6]} 24... Qxb6 {[%clk 0:00:56.8]} 25. axb6 {[%clk 0:00:37.5]}
25... Kd7 {[%clk 0:00:50.7]} 26. b4 {[%clk 0:00:34.7]} 26... Nd3+ {[%clk
0:00:46.2]} 27. Ke2 {[%clk 0:00:31]} 27... e4 {[%clk 0:00:35.8]} 28. Rc7+ {[%clk
0:00:29.6]} 28... Kd8 {[%clk 0:00:35.9]} 29. Rxb7 {[%clk 0:00:26.8]} 29... Bf6
{[%clk 0:00:26.1]} 30. Rc7 {[%clk 0:00:20.6]} 30... Rc8 {[%clk 0:00:21.4]} 31.
Ra1 {[%clk 0:00:10.9]} 31... Rxc7 {[%clk 0:00:20.2]} 32. bxc7+ {[%clk
0:00:11.1]} 32... Kxc7 {[%clk 0:00:21.1]} 33. Rxa6 {[%clk 0:00:11.1]} 33... Bxc3
{[%clk 0:00:20.8]} 34. Rc6+ {[%clk 0:00:11.1]} 34... Kd7 {[%clk 0:00:20.6]} 35.
Rxc3 {[%clk 0:00:11.1]} 35... Nxb4 {[%clk 0:00:18.8]} 36. Bd4 {[%clk 0:00:09.3]}
36... Ra8 {[%clk 0:00:17]} 37. Rb3 {[%clk 0:00:06]} 37... Nxd5 {[%clk
0:00:16.6]} 38. Rb7+ {[%clk 0:00:05.1]} 38... Ke6 {[%clk 0:00:15.8]} 39. Rb2
{[%clk 0:00:03.8]} 39... Ne7 {[%clk 0:00:14.5]} 40. Bg2 {[%clk 0:00:04]} 40...
Nc6 {[%clk 0:00:14.5]} 41. Be3 {[%clk 0:00:04.3]} 41... Ne5 {[%clk 0:00:14.6]}
42. f4 {[%clk 0:00:03.8]} 42... exf3+ {[%clk 0:00:14.3]} 43. Bxf3 {[%clk
0:00:03.8]} 43... Rc8 {[%clk 0:00:13.7]} 44. Bf4 {[%clk 0:00:03.7]} 44... Rc4
{[%clk 0:00:10.7]} 45. Bxe5 {[%clk 0:00:03.8]} 45... Kxe5 {[%clk 0:00:10.4]} 46.
Rb5+ {[%clk 0:00:03.6]} 46... Ke6 {[%clk 0:00:08.7]} 47. Bd5+ {[%clk 0:00:02.9]}
47... Kf6 {[%clk 0:00:08.8]} 48. Bxc4 {[%clk 0:00:03.8]} 1-0

[Event "Early-Titled-Tuesday-Blitz-March-26-2024"]
[Site "Chess.com"]
[Date "2024.03.26"]
[Round "7"]
[White "teresin05"]
[Black "a-z30"]
[Result "0-1"]
[WhiteElo "2285"]
[BlackElo "2441"]
[TimeControl "180+1"]
[EndTime "9:15:51 PDT"]
[Termination "a-z30 won by resignation"]

1. e4 {[%clk 0:03:00.9]} 1... d6 {[%clk 0:02:58.2]} 2. d4 {[%clk 0:02:59]} 2...
Nf6 {[%clk 0:02:58.9]} 3. Nc3 {[%clk 0:02:59.5]} 3... g6 {[%clk 0:02:59.5]} 4.
f4 {[%clk 0:02:58.8]} 4... Bg7 {[%clk 0:03:00]} 5. Nf3 {[%clk 0:02:57.5]} 5...
O-O {[%clk 0:03:00.5]} 6. Be3 {[%clk 0:02:58]} 6... b6 {[%clk 0:02:59.8]} 7. Bd3
{[%clk 0:02:57.3]} 7... c5 {[%clk 0:02:59.7]} 8. e5 {[%clk 0:02:56.5]} 8... Ng4
{[%clk 0:02:52.1]} 9. Bg1 {[%clk 0:02:41]} 9... cxd4 {[%clk 0:02:35]} 10. Bxd4
{[%clk 0:02:39.3]} 10... Nc6 {[%clk 0:02:32.2]} 11. Be4 {[%clk 0:02:28.5]} 11...
Bb7 {[%clk 0:02:22.9]} 12. exd6 {[%clk 0:02:19.2]} 12... Nxd4 {[%clk 0:02:10]}
13. Bxb7 {[%clk 0:02:13.8]} 13... Nxf3+ {[%clk 0:01:57.7]} 14. Qxf3 {[%clk
0:02:08]} 14... Rb8 {[%clk 0:01:29.2]} 15. O-O-O {[%clk 0:01:40.2]} 15... exd6
{[%clk 0:01:27.8]} 16. Nb5 {[%clk 0:01:32.2]} 16... Qf6 {[%clk 0:01:02.6]} 17.
c3 {[%clk 0:01:25.6]} 17... Rxb7 {[%clk 0:00:55.2]} 18. Qxb7 {[%clk 0:01:19.7]}
18... Nf2 {[%clk 0:00:51.3]} 19. Qf3 {[%clk 0:01:09.3]} 19... Nxh1 {[%clk
0:00:48.6]} 20. Rxh1 {[%clk 0:01:10.2]} 20... Re8 {[%clk 0:00:32.6]} 21. Rd1
{[%clk 0:01:09.3]} 21... Bh6 {[%clk 0:00:21.3]} 22. g3 {[%clk 0:01:06.9]} 22...
Re6 {[%clk 0:00:20.9]} 23. Qd5 {[%clk 0:00:53.7]} 23... g5 {[%clk 0:00:18.5]}
24. fxg5 {[%clk 0:00:49.8]} 24... Qxg5+ {[%clk 0:00:17.8]} 25. Qxg5+ {[%clk
0:00:47.2]} 25... Bxg5+ {[%clk 0:00:17.8]} 26. Kb1 {[%clk 0:00:47.8]} 26... Re2
{[%clk 0:00:15.2]} 27. h4 {[%clk 0:00:42.8]} 27... Be7 {[%clk 0:00:14.7]} 28.
Nxd6 {[%clk 0:00:41.5]} 28... Bxd6 {[%clk 0:00:13.8]} 29. Rxd6 {[%clk
0:00:42.4]} 29... Re3 {[%clk 0:00:13]} 30. Rd8+ {[%clk 0:00:37.2]} 30... Kg7
{[%clk 0:00:12.6]} 31. Rd7 {[%clk 0:00:37.8]} 31... Rxg3 {[%clk 0:00:12.4]} 32.
Rxa7 {[%clk 0:00:38.4]} 32... Kg6 {[%clk 0:00:10.6]} 33. Ra6 {[%clk 0:00:37.3]}
33... f5 {[%clk 0:00:10.6]} 34. Rxb6+ {[%clk 0:00:35.8]} 34... Kh5 {[%clk
0:00:10.9]} 35. a4 {[%clk 0:00:33.3]} 35... f4 {[%clk 0:00:10.1]} 36. a5 {[%clk
0:00:32.8]} 36... Rg6 {[%clk 0:00:03.6]} 37. Rxg6 {[%clk 0:00:13.5]} 37... hxg6
{[%clk 0:00:04.5]} 38. a6 {[%clk 0:00:14.1]} 38... f3 {[%clk 0:00:04.2]} 39. a7
{[%clk 0:00:14.9]} 39... f2 {[%clk 0:00:04.6]} 40. a8=Q {[%clk 0:00:15.4]} 40...
f1=Q+ {[%clk 0:00:05.5]} 41. Ka2 {[%clk 0:00:14.7]} 41... Kxh4 {[%clk
0:00:04.7]} 42. Qe4+ {[%clk 0:00:13.6]} 42... Kg5 {[%clk 0:00:04.5]} 43. Qe5+
{[%clk 0:00:13.5]} 43... Qf5 {[%clk 0:00:04.4]} 44. Qg3+ {[%clk 0:00:11]} 44...
Kf6 {[%clk 0:00:04.2]} 45. Qd6+ {[%clk 0:00:09.3]} 45... Qe6+ {[%clk 0:00:03.9]}
46. Qxe6+ {[%clk 0:00:08.4]} 46... Kxe6 {[%clk 0:00:04.8]} 47. b4 {[%clk
0:00:08.5]} 47... g5 {[%clk 0:00:05.7]} 48. b5 {[%clk 0:00:05.7]} 48... g4
{[%clk 0:00:05.8]} 49. b6 {[%clk 0:00:05]} 49... Kd6 {[%clk 0:00:06]} 50. c4
{[%clk 0:00:05.3]} 50... g3 {[%clk 0:00:06.1]} 51. c5+ {[%clk 0:00:05.9]} 51...
Kc6 {[%clk 0:00:06.4]} 52. Kb3 {[%clk 0:00:06.1]} 52... g2 {[%clk 0:00:06.1]}
0-1